bitfinex-derivatives/quotes_ETHF0:USTF0_20240818
["timestamp","ask_amount","ask_price","bid_price","bid_amount"]
[1723992060792,1.96949137,2664.8,2664.3,7.51165063]
[1723992060793,0.01019699,2664.8,2664.7,1.87593]
[1723992060993,0.7108154,2664.8,2664.7,1.87593]
[1723992063285,0.7108154,2664.8,2664.7,7.50466]
[1723992063491,1.95929438,2665.2,2664.8,1.87586]
[1723992063795,0.22778097,2665.1,2665.0,1.87572]
[1723992064392,0.22778097,2665.1,2665.0,2.82172]
[1723992064589,0.22778097,2665.1,2665.0,2.82435964]
[1723992064590,0.2310385,2665.1,2665.0,2.82435964]
[1723992065301,6.26044543,2665.1,2665.0,0.00263964]
[1723992065487,3.91162478,2665.1,2665.0,1.87835964]
[1723992065797,0.23099543,2665.1,2665.0,6.57635964]
[1723992066054,0.00373139,2665.3,2665.2,1.87558]
[1723992066204,0.2314833,2665.3,2665.2,2.82158]
[1723992066426,0.00373139,2665.3,2665.2,5.62758]
[1723992067100,0.00858863,2665.3,2665.2,5.62758]
[1723992069196,0.00858863,2665.3,2665.2,1.87558]
[1723992069404,0.23633468,2665.3,2665.1,0.3443]
[1723992069600,0.00858863,2665.3,2665.2,1.87558]
[1723992069796,0.59369832,2665.3,2665.2,1.87558]
[1723992070297,0.23629832,2665.3,2665.2,1.87558]
[1723992071485,0.23629832,2665.3,2665.2,5.62758]
[1723992071686,0.00858863,2665.3,2665.2,5.62758]
[1723992073294,0.00858863,2665.3,2665.2,1.87558]
[1723992073691,3.76058863,2665.3,2665.0,3.21043964]
[1723992073896,3.76058863,2665.3,2665.0,0.00263964]
[1723992073897,2.47338426,2665.2,2665.0,0.00263964]
[1723992074099,0.22770426,2665.1,2665.0,0.00263964]
[1723992074801,0.22770426,2665.1,2665.0,1.87835964]
[1723992074994,0.7369,2665.2,2665.1,1.87565]
[1723992075187,4.71662057,2665.2,2665.1,1.87565]
[1723992075387,0.59782057,2665.2,2665.1,1.87565]
[1723992075593,0.59781115,2665.2,2665.1,1.87565]
[1723992075999,0.59781115,2665.2,2665.1,2.22735]
[1723992078103,0.00858863,2665.3,2665.2,1.87558]
[1723992078496,0.00858863,2665.3,2665.2,5.99208]
[1723992080704,2.23005,2666.0,2665.2,5.99208]
[1723992080705,2.23005,2666.0,2665.7,1.87519]
[1723992080997,0.22778165,2665.9,2665.8,0.3563]
[1723992081708,0.23211428,2665.9,2665.8,0.3563]
[1723992081906,2.10719428,2665.9,2665.6,1.88088063]
[1723992082205,1.87941263,2665.9,2665.6,1.88088063]
[1723992082902,1.87941263,2665.9,2665.7,1.8752]
[1723992082903,0.00433263,2665.9,2665.7,1.8752]
[1723992083206,0.00433263,2665.9,2665.8,1.87515]
[1723992083395,0.00433263,2665.9,2665.7,0.3546]
[1723992083597,0.00433263,2665.9,2665.8,1.87515]
[1723992083800,0.00433263,2665.9,2665.8,2.22135]
[1723992086709,0.00433263,2665.9,2665.8,5.97255]
[1723992091403,0.00433263,2665.9,2665.8,2.22135]
[1723992092405,0.00433263,2665.9,2665.8,3.16635]
[1723992093820,3.2078,2666.3,2666.2,1.87487]
[1723992094117,3.2078,2666.6,2666.4,1.87472]
[1723992094309,2.59296,2666.7,2666.4,2.81972]
[1723992094516,2.59295,2666.7,2666.4,2.81972]
[1723992094713,0.72129817,2666.7,2666.5,1.87465]
[1723992095112,0.37589817,2666.7,2666.6,1.87459]
[1723992097534,0.37589817,2666.7,2666.4,1.87471]
[1723992097718,0.3582,2666.6,2666.5,1.87466]
[1723992097917,0.3582,2666.6,2666.4,1.87469]
[1723992098320,0.3582,2666.6,2666.4,1.87473]
[1723992098931,0.3582,2666.6,2666.5,1.87466]
[1723992100618,0.37589817,2666.7,2666.6,1.87459]
[1723992101625,0.00289817,2666.7,2666.6,1.87459]
[1723992105231,0.00289817,2666.7,2666.6,5.62499]
[1723992106127,0.00289817,2666.7,2666.6,7.49958]
[1723992106635,0.00289817,2666.7,2666.6,8.23658]
[1723992107828,0.00289817,2666.7,2666.6,1.87459]
[1723992108945,1.87467,2666.5,2666.1,4.149]
[1723992109127,0.703,2666.4,2665.9,3.5702]
[1723992109321,1.0741,2666.4,2665.9,3.5702]
[1723992109534,1.87481,2666.3,2666.0,1.87501]
[1723992110135,1.87481,2666.3,2665.9,2.23745]
[1723992110362,1.87481,2666.3,2666.0,1.87501]
[1723992110839,1.87481,2666.3,2665.9,2.23745]
[1723992111024,1.87481,2666.3,2666.0,1.875]
[1723992111219,1.87492,2666.2,2665.9,2.23744]
[1723992111427,1.87514,2665.9,2665.6,1.88089063]
[1723992111625,1.87523,2665.7,2665.6,0.00563063]
[1723992111828,2.94388,2665.8,2665.6,0.00563063]
[1723992112221,1.0687,2665.8,2665.6,0.00563063]
[1723992112420,5.08273,2666.2,2665.6,0.00563063]
[1723992112421,0.3515,2666.1,2665.9,1.87505]
[1723992112624,0.22789348,2666.0,2665.9,1.87505]
[1723992112837,3.97909348,2666.0,2665.9,1.87505]
[1723992113338,3.7512,2666.0,2665.9,1.87505]
[1723992113530,0.3644,2666.1,2666.0,1.87501]
[1723992114045,4.102,2666.3,2666.2,1.87487]
[1723992114231,0.22791265,2666.3,2666.2,1.87487]
[1723992115237,2.10271265,2666.3,2666.1,1.8749]
[1723992115430,1.8748,2666.3,2666.1,1.8749]
[1723992116727,0.3644,2666.4,2666.0,1.87497]
[1723992116931,2.10275913,2666.3,2666.1,1.87493]
[1723992117128,1.87487,2666.2,2666.0,1.87497]
[1723992117842,0.3644,2666.4,2665.7,1.0693]
[1723992118035,1.87487,2666.2,2666.0,1.87498]
[1723992118540,1.87484,2666.3,2666.1,1.87494]
[1723992118735,1.87487,2666.2,2666.0,1.87499]
[1723992119642,1.87504,2666.0,2665.8,1.87513]
[1723992119936,0.3511,2665.9,2665.8,1.87513]
[1723992120738,0.3511,2665.9,2665.7,2.24399]
[1723992121844,0.3511,2665.9,2665.8,1.87516]
[1723992122079,1.8749,2666.2,2665.9,1.87504]
[1723992122256,0.22811034,2666.1,2665.9,1.87504]
[1723992122547,0.22809504,2666.0,2665.9,1.87504]
[1723992122750,2.2162,2666.2,2665.9,1.87504]
[1723992122952,0.22811134,2666.1,2665.9,1.87504]
[1723992123166,0.22811134,2666.0,2665.9,1.87504]
[1723992123452,0.22810329,2666.1,2666.0,1.87501]
[1723992123650,0.22812179,2666.1,2666.0,1.87501]
[1723992124040,0.22812179,2666.1,2665.7,0.3688]
[1723992124248,0.22812179,2666.0,2665.9,1.87502]
[1723992126160,2.21621,2666.2,2666.0,1.875]
[1723992126346,0.3413,2666.2,2666.0,1.875]
[1723992126546,0.22810606,2666.1,2665.9,1.87504]
[1723992126755,0.22810606,2666.0,2665.9,1.87504]
[1723992127251,1.87504,2666.0,2665.8,1.87511]
[1723992127461,0.22810606,2665.9,2665.7,2.24398]
[1723992127655,0.22810606,2665.9,2665.8,1.87516]
[1723992130165,1.87516,2665.8,2665.7,0.3688]
[1723992130359,2.10332968,2665.8,2665.6,3.21343063]
[1723992130557,0.59746968,2665.7,2665.6,5.08873063]
[1723992130866,0.59748902,2665.7,2665.6,5.08873063]
[1723992132062,0.22818902,2665.7,2665.6,5.08873063]
[1723992133758,0.3559,2666.1,2665.6,6.96463063]
[1723992133962,6.32586,2666.3,2665.6,6.96463063]
[1723992133963,0.22818033,2666.0,2665.9,1.87508]
[1723992134155,0.22818033,2666.0,2665.9,5.08288]
[1723992134352,0.22818033,2666.0,2665.9,8.83408]
[1723992134858,0.22818033,2666.0,2665.9,5.62628]
[1723992138356,0.22818033,2666.0,2665.9,1.87508]
[1723992138766,0.22818033,2666.0,2665.9,5.62628]
[1723992142164,0.22818033,2666.0,2665.9,5.62629]
[1723992142586,1.87492,2666.2,2665.9,5.62629]
[1723992142758,0.2281825,2666.1,2665.9,1.87509]
[1723992142964,2.1031425,2666.1,2665.9,1.87509]
[1723992143164,1.87496,2666.1,2665.9,1.87509]
[1723992143464,0.59858741,2666.0,2665.9,1.87509]
[1723992143865,0.59858741,2666.0,2665.9,5.62629]
[1723992144067,0.59858741,2666.0,2665.9,1.87509]
[1723992146799,0.3704,2666.0,2665.9,1.87509]
[1723992146961,0.59857709,2666.0,2665.9,1.87509]
[1723992148565,0.59857709,2666.0,2665.9,2.82009]
[1723992149062,0.59857474,2666.0,2665.9,2.82009]
[1723992150466,2.47358474,2666.0,2665.9,0.945]
[1723992150664,2.94738056,2666.0,2665.9,0.945]
[1723992150856,1.07237056,2666.0,2665.9,2.82008]
[1723992151055,1.07237056,2666.0,2665.9,0.945]
[1723992151364,0.3704,2666.0,2665.8,6.39111]
[1723992151667,1.07239024,2666.0,2665.8,6.39111]
[1723992151866,0.70199024,2665.9,2665.8,6.39111]
[1723992154067,2.66128462,2665.9,2665.8,6.39111]
[1723992154662,2.66128462,2665.9,2665.8,4.516]
[1723992154976,2.66128462,2665.9,2665.8,6.39116]
[1723992155667,1.87516,2665.8,2665.7,1.87522]
[1723992155864,4.89561728,2665.8,2665.7,0.945]
[1723992156092,0.3514,2665.8,2665.7,0.945]
[1723992156374,0.70175508,2665.8,2665.7,0.945]
[1723992156573,0.70175508,2665.8,2665.7,2.82023]
[1723992157168,2.57691508,2665.8,2665.7,0.945]
[1723992157369,1.87523,2665.7,2665.6,0.00563063]
[1723992157567,4.54408158,2665.7,2665.6,0.00563063]
[1723992157764,1.8753,2665.6,2665.5,3.207]
[1723992158072,9.14855508,2665.6,2665.5,3.20388793]
[1723992158379,13.20355508,2665.6,2665.5,3.20388793]
[1723992158566,14.14855508,2665.6,2665.5,3.20388793]
[1723992159676,16.6546,2665.6,2665.5,3.20388793]
[1723992159868,17.35663791,2665.6,2665.5,3.20388793]
[1723992160464,16.41163791,2665.6,2665.5,3.20388793]
[1723992160665,11.41163791,2665.6,2665.5,3.20388793]
[1723992160874,11.99267394,2665.6,2665.5,3.20388793]
[1723992161269,11.99267394,2665.6,2665.5,3.20088793]
[1723992161468,6.36617394,2665.6,2665.5,5.07625793]
[1723992161666,2.66661447,2665.6,2665.5,5.07625793]
[1723992162171,4.54191447,2665.6,2665.5,5.07625793]
[1723992162681,2.57733791,2665.6,2665.5,3.20088793]
[1723992162880,2.94853791,2665.6,2665.5,3.20088793]
[1723992163076,5.40487394,2665.6,2665.5,3.20088793]
[1723992163285,7.28077394,2665.6,2665.5,5.07625793]
[1723992163578,0.70203791,2665.6,2665.5,5.07625793]
[1723992164077,2.66615243,2665.6,2665.5,5.07625793]
[1723992164773,2.57733791,2665.6,2665.5,5.07625793]
[1723992165091,0.70203791,2665.6,2665.5,5.07625793]
[1723992165272,2.66594992,2665.6,2665.5,5.07625793]
[1723992165597,1.96391201,2665.6,2665.5,5.07625793]
[1723992165770,4.5410351,2665.6,2665.5,5.07625793]
[1723992165972,4.5410351,2665.6,2665.5,3.20088793]
[1723992166277,4.54102894,2665.6,2665.5,3.20088793]
[1723992167772,2.57719059,2665.6,2665.5,3.20088793]
[1723992168272,1.96361664,2665.6,2665.5,5.07625793]
[1723992168483,2.66546982,2665.6,2665.5,5.07625793]
[1723992168784,0.70185318,2665.6,2665.5,5.07625793]
[1723992168981,2.66546982,2665.6,2665.5,5.07625793]
[1723992171190,4.54076982,2665.6,2665.5,3.20088793]
[1723992172076,2.57715318,2665.6,2665.5,3.20088793]
[1723992172384,4.54034094,2665.6,2665.5,3.20088793]
[1723992173384,4.54034524,2665.6,2665.5,3.20088793]
[1723992173583,2.57715318,2665.6,2665.5,3.20088793]
[1723992174476,4.54010282,2665.6,2665.5,3.20088793]
[1723992176015,3.83824964,2665.6,2665.5,3.20088793]
[1723992176177,4.5401378,2665.6,2665.5,3.20088793]
[1723992179685,2.57718816,2665.6,2665.5,3.20088793]
[1723992179986,1.8753,2665.6,2665.5,3.20088793]
[1723992180182,2.57718164,2665.6,2665.5,3.20088793]
[1723992180687,2.57718361,2665.6,2665.5,3.20088793]
[1723992181194,4.54013883,2665.6,2665.5,3.20088793]
[1723992181380,4.54013875,2665.6,2665.5,3.20088793]
[1723992182487,5.48613875,2665.6,2665.5,3.20088793]
[1723992183111,4.78424964,2665.6,2665.5,3.20088793]
[1723992183388,5.48613808,2665.6,2665.5,3.20088793]
[1723992183592,8.69393808,2665.6,2665.5,3.20088793]
[1723992184191,6.73098844,2665.6,2665.5,3.20088793]
[1723992184792,5.78498844,2665.6,2665.5,3.20088793]
[1723992184978,0.70188844,2665.6,2665.5,9.77345793]
[1723992185287,0.22812529,2665.6,2665.5,9.77345793]
[1723992186391,0.22812529,2665.6,2665.5,6.02225793]
[1723992191193,1.96858027,2665.9,2665.6,1.87524]
[1723992191390,0.00563063,2665.9,2665.8,3.7503]
[1723992191905,1.96294964,2666.4,2666.3,1.8748]
[1723992192088,1.96294964,2666.4,2666.3,2.8208]
[1723992192089,0.22790876,2666.4,2666.3,2.8208]
[1723992194391,0.22790876,2666.4,2666.2,3.51923]
[1723992194595,0.22790876,2666.3,2666.2,3.51923]
[1723992194793,0.22792915,2666.4,2666.3,1.8748]
[1723992194999,0.22793046,2666.4,2666.3,1.8748]
[1723992195395,1.96294964,2666.5,2666.2,3.51924]
[1723992195599,0.22792927,2666.4,2666.3,1.87479]
[1723992195893,0.22792927,2666.4,2666.2,3.51923]
[1723992196095,0.22792927,2666.3,2666.2,3.51923]
[1723992197299,0.35729817,2666.7,2666.2,3.51923]
[1723992197300,0.00289817,2666.7,2666.2,5.3948]
[1723992197493,0.22788663,2666.6,2666.5,2.8206]
[1723992199610,0.22789143,2666.6,2666.5,1.87466]
[1723992200103,0.22789143,2666.6,2666.4,2.82068]
[1723992200300,3.16373817,2666.7,2666.4,2.82068]
[1723992200494,0.22791596,2666.6,2666.4,2.82068]
[1723992200696,3.16373817,2666.7,2666.5,1.87466]
[1723992200898,0.22791456,2666.6,2666.5,1.87466]
[1723992203099,0.22791456,2666.6,2666.5,5.07554793]
[1723992203321,0.00289817,2666.7,2666.6,1.87459]
[1723992203599,0.23079506,2666.7,2666.6,1.87459]
[1723992203812,0.23079506,2666.7,2666.6,2.82059]
[1723992203996,0.00289817,2666.7,2666.6,9.77187793]
[1723992204200,0.00289817,2666.7,2666.6,14.85426793]
[1723992204504,2.8201,2667.3,2667.0,1.87427]
[1723992204706,0.22781694,2667.2,2667.0,1.87427]
[1723992205006,2.8201,2667.3,2667.0,1.87427]
[1723992205203,0.22783441,2667.2,2667.0,1.87427]
[1723992205402,0.00266395,2667.2,2667.0,1.87787383]
[1723992206711,4.69826395,2667.2,2667.0,0.00360383]
[1723992206901,5.65840091,2667.1,2667.0,0.00360383]
[1723992207108,5.43054,2667.1,2667.0,0.00360383]
[1723992207294,9.18014,2667.1,2667.0,0.00360383]
[1723992209802,5.97234,2667.1,2667.0,0.00360383]
[1723992210905,0.3485,2667.1,2667.0,0.00360383]
[1723992211110,5.97234,2667.1,2667.0,0.00360383]
[1723992211813,4.0981,2667.1,2667.0,0.00360383]
[1723992212112,0.00266395,2667.2,2667.1,1.87424]
[1723992212312,0.00266395,2667.2,2667.1,5.62384]
[1723992212905,0.00266395,2667.2,2667.1,1.87424]
[1723992214730,0.00266395,2667.2,2667.0,5.07878176]
[1723992214905,0.00266395,2667.2,2667.0,3.20449176]
[1723992215101,0.35756395,2667.2,2667.0,5.07878176]
[1723992215513,0.00266395,2667.2,2667.1,1.87424]
[1723992216207,0.00266395,2667.2,2667.1,2.22054]
[1723992219019,0.00266395,2667.2,2667.1,5.97014]
[1723992219513,0.00266395,2667.2,2667.1,2.22054]
[1723992219908,0.3643,2667.5,2667.1,4.0959]
[1723992220112,3.2078,2667.7,2667.5,1.8739]
[1723992220411,3.2078,2667.7,2667.6,2.21219]
[1723992220613,3.2078,2667.7,2667.6,5.41307793]
[1723992220915,3.21120508,2667.7,2667.6,5.41307793]
[1723992221109,0.00340508,2667.7,2667.6,5.41307793]
[1723992225815,0.00340508,2667.7,2667.6,8.62087793]
[1723992230414,0.00340508,2667.7,2667.6,9.56587793]
[1723992231321,0.3502,2668.2,2668.1,1.87354]
[1723992231631,0.3502,2668.2,2668.1,2.81854]
[1723992232127,1.87329,2668.5,2668.2,1.87346]
[1723992232428,1.87329,2668.5,2668.3,3.20088793]
[1723992232429,0.3393,2668.4,2668.3,3.20088793]
[1723992232629,2.21263,2668.4,2668.3,3.20088793]
[1723992232830,4.0873,2668.4,2668.3,3.20088793]
[1723992234123,5.96063,2668.4,2668.3,3.20088793]
[1723992234824,4.0873,2668.4,2668.3,5.07428793]
[1723992235124,4.0873,2668.4,2668.3,3.20088793]
[1723992235521,2.21263,2668.4,2668.3,3.20088793]
[1723992235723,6.90563,2668.4,2668.3,3.20088793]
[1723992235915,3.15763,2668.4,2668.3,3.20088793]
[1723992237025,1.2843,2668.4,2668.3,3.20088793]
[1723992237431,2.21263,2668.4,2668.3,3.20088793]
[1723992237827,3.15763,2668.4,2668.3,3.20088793]
[1723992239765,2.21263,2668.4,2668.3,3.20088793]
[1723992240121,0.3393,2668.4,2668.3,5.07428793]
[1723992240437,0.3393,2668.4,2668.3,6.01928793]
[1723992240632,3.2078,2668.9,2668.3,7.89388793]
[1723992240936,4.4917,2669.3,2669.1,1.87278]
[1723992241123,4.4917,2669.3,2668.6,1.87315]
[1723992241124,4.8628,2669.3,2669.2,3.20088793]
[1723992241321,6.7355,2669.3,2669.2,3.20088793]
[1723992241532,10.4819,2669.3,2669.2,3.20088793]
[1723992241723,10.4819,2669.3,2669.2,3.20491952]
[1723992241724,10.48627083,2669.3,2669.2,3.20491952]
[1723992242435,9.54127083,2669.3,2669.2,3.20491952]
[1723992242626,16.41397083,2669.3,2669.2,3.20491952]
[1723992243623,9.54127083,2669.3,2669.2,3.20491952]
[1723992244228,5.79487083,2669.3,2669.2,3.20491952]
[1723992244435,3.92217083,2669.3,2669.2,3.20491952]
[1723992244630,9.54127083,2669.3,2669.2,3.20491952]
[1723992245332,7.66857083,2669.3,2669.2,3.20491952]
[1723992245729,5.79487083,2669.3,2669.2,3.20491952]
[1723992246029,9.54127083,2669.3,2669.2,3.20491952]
[1723992247832,7.66857083,2669.3,2669.2,3.20491952]
[1723992248035,0.37547083,2669.3,2669.2,3.20491952]
[1723992248234,2.24817083,2669.3,2669.2,3.56981952]
[1723992248434,14.20237083,2669.3,2669.2,3.20491952]
[1723992248636,18.17532825,2669.3,2669.2,2.4269354]
[1723992248825,16.30262825,2669.3,2669.2,1.3099354]
[1723992249132,11.30262825,2669.3,2669.2,1.3099354]
[1723992249736,9.42992825,2669.3,2669.2,1.3099354]
[1723992249944,11.30262825,2669.3,2669.2,1.3099354]
[1723992250234,9.42992825,2669.3,2669.2,1.3099354]
[1723992250734,9.42992825,2669.3,2669.2,2.6189354]
[1723992250961,9.20237083,2669.3,2669.2,2.6189354]
[1723992251128,5.45597083,2669.3,2669.2,2.6189354]
[1723992252034,9.20237083,2669.3,2669.2,2.6189354]
[1723992252249,9.42991482,2669.3,2669.2,2.6189354]
[1723992252737,11.30261482,2669.3,2669.2,2.6189354]
[1723992253139,9.42991482,2669.3,2669.2,2.6189354]
[1723992255131,9.20237083,2669.3,2669.2,2.6189354]
[1723992255532,9.4299297,2669.3,2669.2,2.6189354]
[1723992256129,11.3026297,2669.3,2669.2,2.6189354]
[1723992256646,9.4299297,2669.3,2669.2,2.6189354]
[1723992258439,9.0588297,2669.3,2669.2,2.6189354]
[1723992258635,8.83127083,2669.3,2669.2,2.6189354]
[1723992262537,9.05879042,2669.3,2669.2,2.6189354]
[1723992262944,8.83127083,2669.3,2669.2,2.6189354]
[1723992263343,9.05878547,2669.3,2669.2,2.6189354]
[1723992263753,8.83127083,2669.3,2669.2,2.6189354]
[1723992263947,9.05878652,2669.3,2669.2,2.6189354]
[1723992264447,10.00278717,2669.3,2669.2,2.6189354]
[1723992265346,11.96573681,2669.3,2669.2,2.6189354]
[1723992267747,16.87548717,2669.3,2669.2,2.6189354]
[1723992267943,19.3318232,2669.3,2669.2,2.6189354]
[1723992268158,17.04825558,2669.3,2669.2,2.6189354]
[1723992268850,16.87555558,2669.3,2669.2,2.6189354]
[1723992269944,15.93155558,2669.3,2669.2,2.6189354]
[1723992270150,16.87555558,2669.3,2669.2,2.6189354]
[1723992270851,18.74825558,2669.3,2669.2,2.6189354]
[1723992271045,16.87555558,2669.3,2669.2,2.6189354]
[1723992271349,11.87555558,2669.3,2669.2,2.6189354]
[1723992271649,19.32427812,2669.3,2669.2,2.6189354]
[1723992272156,14.09669337,2669.3,2669.2,2.6189354]
[1723992272450,16.87551909,2669.3,2669.2,2.6189354]
[1723992272647,9.63520854,2669.3,2669.2,2.6189354]
[1723992272848,10.00281909,2669.3,2669.2,2.9573354]
[1723992273244,12.45190854,2669.3,2669.2,2.9573354]
[1723992273541,8.70550854,2669.3,2669.2,2.9573354]
[1723992274557,5.49770854,2669.3,2669.2,2.9573354]
[1723992274766,8.70550854,2669.3,2669.2,4.8301054]
[1723992275060,8.70550854,2669.3,2669.2,2.9573354]
[1723992275353,6.83280854,2669.3,2669.2,4.8301054]
[1723992275550,2.44908945,2669.3,2669.2,5.7741054]
[1723992275752,1.96008387,2669.4,2669.3,1.8727]
[1723992275952,0.61700854,2669.6,2669.4,1.87263]
[1723992275953,1.96008387,2669.5,2669.4,1.87263]
[1723992276552,1.96326842,2669.5,2669.4,1.87263]
[1723992277152,1.96326842,2669.5,2669.4,2.81663]
[1723992278152,0.00318455,2669.5,2669.4,2.81663]
[1723992279865,1.96326842,2669.5,2669.4,2.81663]
[1723992280292,1.96326842,2669.5,2669.4,4.12563]
[1723992282066,4.77982842,2669.5,2669.4,3.18163]
[1723992282280,2.81974455,2669.5,2669.4,3.18163]
[1723992282456,0.94718455,2669.5,2669.4,3.18163]
[1723992282657,2.81974455,2669.5,2669.4,1.309]
[1723992282958,11.56614455,2669.5,2669.4,1.309]
[1723992283261,13.43870455,2669.5,2669.4,1.309]
[1723992283475,8.43870455,2669.5,2669.4,1.309]
[1723992286158,4.69230455,2669.5,2669.4,1.309]
[1723992286355,5.62214455,2669.5,2669.4,1.309]
[1723992286555,0.00318455,2669.5,2669.4,1.309]
[1723992286863,0.94718455,2669.5,2669.4,3.55453]
[1723992287067,0.00318455,2669.5,2669.4,3.55453]
[1723992287460,0.00318455,2669.5,2669.4,1.6819]
[1723992287762,1.17461592,2669.5,2669.4,1.6819]
[1723992288372,1.17461752,2669.5,2669.4,1.6819]
[1723992288668,3.04717752,2669.5,2669.4,1.6819]
[1723992288871,2.81974455,2669.5,2669.4,1.6819]
[1723992289069,0.2306127,2669.5,2669.4,3.55453]
[1723992289268,2.19301036,2669.5,2669.4,8.24493]
[1723992289664,2.19289962,2669.5,2669.4,8.24493]
[1723992291262,0.88389962,2669.5,2669.4,6.93593]
[1723992291457,2.81649,2669.6,2669.4,2.24553]
[1723992291659,0.944,2669.6,2669.5,1.87256]
[1723992291863,5.08024,2669.7,2669.5,1.87256]
[1723992291864,6.02424,2669.7,2669.5,1.87256]
[1723992292066,5.08024,2669.7,2669.5,1.87256]
[1723992292275,5.08331346,2669.7,2669.6,0.3375]
[1723992292773,3.21087346,2669.7,2669.6,0.3375]
[1723992292969,3.21087346,2669.7,2669.6,2.20999]
[1723992294064,0.00307346,2669.7,2669.6,3.15399]
[1723992294671,0.00307346,2669.7,2669.6,2.20999]
[1723992296368,0.00307346,2669.7,2669.6,11.89959]
[1723992296568,3.2078,2670.0,2669.6,11.89959]
[1723992296774,3.2078,2670.0,2669.8,0.944]
[1723992296967,3.2078,2670.0,2669.9,1.87228]
[1723992297171,2.45154008,2670.4,2670.3,1.87199]
[1723992297366,5.26749008,2670.4,2670.3,1.87199]
[1723992297565,5.27115903,2670.4,2670.0,0.944]
[1723992297773,5.27115903,2670.4,2670.2,1.87202]
[1723992297965,3.39920903,2670.4,2670.1,0.3501]
[1723992298169,1.87199,2670.3,2670.1,2.22219]
[1723992298367,1.87199,2670.3,2670.2,1.87207]
[1723992298781,2.81963895,2670.4,2670.2,1.87207]
[1723992299468,2.81963895,2670.4,2670.3,0.3701]
[1723992299974,2.81963895,2670.4,2670.3,2.58289]
[1723992300162,0.00366895,2670.4,2670.3,2.58289]
[1723992300365,0.94766895,2670.4,2670.3,0.7109]
[1723992300578,2.81958895,2670.4,2670.3,0.7109]
[1723992300770,0.94766895,2670.4,2670.3,0.7109]
[1723992301072,0.94766895,2670.4,2670.2,1.87203]
[1723992301267,0.94766895,2670.4,2670.3,2.21279]
[1723992301778,0.00366895,2670.4,2670.3,2.21279]
[1723992301972,0.00366895,2670.4,2670.3,2.57469]
[1723992302368,0.00366895,2670.4,2670.3,3.51869]
[1723992302675,0.00366895,2670.4,2670.3,7.26349]
[1723992303079,0.00366895,2670.4,2670.3,12.26349]
[1723992304375,0.00366895,2670.4,2670.3,7.26349]
[1723992305277,0.00366895,2670.4,2670.3,5.3915]
[1723992305483,0.00366895,2670.4,2670.3,7.26349]
[1723992305876,0.00366895,2670.4,2670.3,6.31949]
[1723992306074,0.00366895,2670.4,2670.3,11.31949]
[1723992306277,0.00366895,2670.4,2670.3,12.26349]
[1723992308286,0.00366895,2670.4,2670.3,14.13548]
[1723992309585,7.28863,2671.2,2670.3,14.13548]
[1723992309586,0.3712,2671.2,2670.3,12.26349]
[1723992309787,3.579,2671.2,2671.1,2.81544]
[1723992310085,3.579,2671.2,2671.1,1.87144]
[1723992310482,3.579,2671.2,2671.1,2.22714]
[1723992310680,5.45429632,2671.2,2671.1,0.35924496]
[1723992311888,6.39829632,2671.2,2671.1,0.35924496]
[1723992312481,4.52692632,2671.2,2671.1,0.35924496]
[1723992313081,6.39829632,2671.2,2671.1,0.35924496]
[1723992313789,4.52692632,2671.2,2671.1,0.35924496]
[1723992313992,3.58292632,2671.2,2671.1,2.23068496]
[1723992314390,3.58292632,2671.2,2671.1,0.35924496]
[1723992314391,5.45429632,2671.2,2671.1,0.35924496]
[1723992315288,3.58292632,2671.2,2671.1,2.23068496]
[1723992315474,3.58292632,2671.2,2671.1,0.35924496]
[1723992315674,3.58292632,2671.2,2671.1,2.23068496]
[1723992315892,5.45429632,2671.2,2671.1,0.35924496]
[1723992316792,3.58292632,2671.2,2671.1,2.23068496]
[1723992318193,3.58292632,2671.2,2671.1,0.35924496]
[1723992318388,4.52692632,2671.2,2671.1,0.00354496]
[1723992318692,1.87144,2671.1,2670.4,0.3693]
[1723992318877,5.07966,2670.5,2670.4,0.3693]
[1723992319288,3.5596,2670.5,2670.1,0.944]
[1723992319486,5.4315,2670.5,2670.2,1.87203]
[1723992319714,5.4315,2670.5,2670.1,0.94788624]
[1723992319715,3.5596,2670.5,2670.3,0.944]
[1723992320288,5.43146,2670.5,2670.4,0.349]
[1723992320486,3.5596,2670.5,2670.4,0.349]
[1723992320686,3.5596,2670.5,2670.4,2.22093]
[1723992321395,0.00558264,2670.6,2670.4,2.22093]
[1723992321396,0.00558264,2670.6,2670.5,1.87186]
[1723992321694,0.00558264,2670.6,2670.5,2.20876]
[1723992322581,1.87186,2670.5,2670.4,0.349]
[1723992322789,1.87186,2670.5,2670.2,0.3369]
[1723992322989,0.3378,2670.4,2670.3,1.87195]
[1723992323583,0.3378,2670.4,2670.2,0.3369]
[1723992323584,1.872,2670.3,2670.2,0.3369]
[1723992323799,0.3378,2670.4,2670.1,0.35208624]
[1723992323981,0.3378,2670.4,2670.3,1.872]
[1723992324188,0.00558264,2670.6,2670.5,1.87186]
[1723992324985,0.00558264,2670.6,2670.5,5.61666]
[1723992329990,0.00558264,2670.6,2670.5,5.95336]
[1723992330199,0.00558264,2670.6,2670.5,10.95336]
[1723992330903,0.00558264,2670.6,2670.5,5.95336]
[1723992331602,0.00558264,2670.6,2670.5,10.95336]
[1723992334301,0.00558264,2670.6,2670.5,12.82522]
[1723992338303,0.00558264,2670.6,2670.5,2.20856]
[1723992338508,1.87186,2670.5,2670.2,1.87203]
[1723992338696,0.59668772,2670.4,2670.2,1.872]
[1723992338896,0.59668772,2670.4,2670.3,1.872]
[1723992338897,0.3695,2670.4,2670.3,1.872]
[1723992339104,0.59672372,2670.4,2670.3,1.872]
[1723992340497,0.22722372,2670.4,2670.3,5.6168]
[1723992341402,0.22722372,2670.4,2670.3,10.6168]
[1723992341602,0.00558264,2670.6,2670.5,1.87186]
[1723992342114,0.00558264,2670.6,2670.5,5.61666]
[1723992342410,0.23273983,2670.6,2670.5,5.61666]
[1723992343920,3.2078,2670.9,2670.8,1.87165]
[1723992344112,3.43491414,2670.9,2670.8,1.87165]
[1723992344300,3.43491414,2670.9,2670.8,5.61565]
[1723992344506,3.43491414,2670.9,2670.8,5.98245]
[1723992346313,3.2078,2670.9,2670.8,5.98245]
[1723992346814,3.43489385,2670.9,2670.8,5.98245]
[1723992347206,3.2078,2670.9,2670.8,5.98245]
[1723992347914,0.3376,2671.1,2671.0,1.87151]
[1723992348117,0.56470123,2671.1,2671.0,1.87151]
[1723992349213,2.43614123,2671.1,2670.9,2.23234]